bitfinex-derivatives/quotes_BNBF0:USTF0_20230831
["timestamp","ask_amount","ask_price","bid_price","bid_amount"]
[1693485119496,0.14391185,223.59,223.28,0.19098877]
[1693485119694,0.14391185,223.59,223.29,0.19098877]
[1693485119993,0.14391185,223.59,223.3,0.19098877]
[1693485120185,0.14391185,223.59,223.23,0.0733194]
[1693485120186,0.14391185,223.59,223.24,0.19098877]
[1693485120389,0.14391185,223.59,223.25,0.19099144]
[1693485120593,0.14391185,223.59,223.24,0.19099144]
[1693485120789,0.14391185,223.59,223.25,0.19099144]
[1693485120995,0.14391185,223.59,223.24,0.19099144]
[1693485121197,0.14391185,223.59,223.25,0.19099144]
[1693485121398,0.14391185,223.6,223.23,0.26431084]
[1693485121595,0.14391185,223.6,223.24,0.19099144]
[1693485123091,0.14391185,223.6,223.23,0.19099144]
[1693485123295,0.14391185,223.59,223.25,0.19099144]
[1693485123495,0.14391185,223.59,223.26,0.19099144]
[1693485123699,0.14391185,223.6,223.23,0.19099144]
[1693485123900,0.07182889,223.57,223.24,0.19099144]
[1693485124093,0.07182889,223.57,223.23,0.19099144]
[1693485124894,0.07182889,223.58,223.23,0.19099144]
[1693485126300,0.07182889,223.58,223.24,0.19099144]
[1693485126603,0.07182889,223.58,223.25,0.19099144]
[1693485126801,0.07182889,223.58,223.26,0.19099144]
[1693485126998,0.07182889,223.58,223.27,0.19099144]
[1693485127197,0.07182889,223.58,223.22,0.19099144]
[1693485127402,0.07182889,223.58,223.23,0.19099144]
[1693485127602,0.07182889,223.58,223.21,0.0733194]
[1693485127603,0.07182889,223.58,223.22,0.19099144]
[1693485127796,0.07182889,223.58,223.23,0.19099144]
[1693485127998,0.07182889,223.58,223.22,0.19099144]
[1693485128202,0.07182889,223.58,223.23,0.19099144]
[1693485128405,0.07182889,223.58,223.22,0.19099144]
[1693485128603,0.07182889,223.59,223.23,0.19099144]
[1693485130400,0.07182889,223.64,223.27,0.0733194]
[1693485130604,0.07182889,223.64,223.03,0.97759203]
[1693485130605,0.07182889,223.65,223.28,0.26431084]
[1693485130804,0.07182889,223.65,223.29,0.19099144]
[1693485131208,0.07182889,223.66,223.29,0.19099144]
[1693485131607,0.07182889,223.66,223.29,0.26431084]
[1693485131809,0.07182889,223.66,223.3,0.19099144]
[1693485132204,0.07182889,223.66,223.31,0.19099144]
[1693485132409,0.07182889,223.66,223.32,0.19099144]
[1693485132604,0.07182889,223.66,223.29,0.19099144]
[1693485132909,0.07182889,223.67,223.29,0.19099144]
[1693485134705,0.07182889,223.66,223.28,0.19099144]
[1693485134911,0.07182889,223.67,223.29,0.19099144]
[1693485135113,0.07182889,223.66,223.28,0.19099144]
[1693485135304,0.07182889,223.66,223.29,0.19099144]
[1693485135612,0.07182889,223.66,223.3,0.19099144]
[1693485135814,0.07182889,223.66,223.28,0.19099144]
[1693485136012,0.07182889,223.66,223.29,0.19099144]
[1693485136212,0.07182889,223.66,223.28,0.19099144]
[1693485136407,0.07182889,223.66,223.29,0.19099144]
[1693485136714,0.07182889,223.66,223.3,0.19099144]
[1693485136913,0.07182889,223.67,223.28,0.19099144]
[1693485137116,0.07182889,223.67,223.29,0.19099144]
[1693485137413,0.07182889,223.66,223.3,0.19099144]
[1693485137614,0.07182889,223.66,223.28,0.19099144]
[1693485137807,0.07182889,223.66,223.29,0.19099144]
[1693485138011,0.07182889,223.66,223.28,0.19099144]
[1693485138413,0.07182889,223.67,223.28,0.19099144]
[1693485139214,0.07182889,223.66,223.28,0.19099144]
[1693485140715,0.07182889,223.67,223.28,0.19099144]
[1693485142616,0.07182889,223.68,223.28,0.26431084]
[1693485142816,0.07182889,223.68,223.29,0.19099144]
[1693485144219,0.07182889,223.68,223.28,0.19099144]
[1693485144417,0.07182889,223.68,223.29,0.19099144]
[1693485144617,0.07182889,223.68,223.28,0.26431084]
[1693485144818,0.07182889,223.68,223.29,0.19099144]
[1693485145014,0.07182889,223.68,223.28,0.19099144]
[1693485145213,0.07182889,223.68,223.29,0.19099144]
[1693485145419,0.07182889,223.68,223.28,0.19099144]
[1693485145619,0.07182889,223.68,223.29,0.19099144]
[1693485145922,0.07182889,223.68,223.3,0.19099144]
[1693485146114,0.07182889,223.68,223.28,0.19099144]
[1693485146314,0.07182889,223.68,223.29,0.19099144]
[1693485146517,0.07182889,223.68,223.28,0.19099144]
[1693485146717,0.07182889,223.68,223.29,0.19099144]
[1693485146917,0.07182889,223.68,223.28,0.19099144]
[1693485147115,0.07182889,223.68,223.29,0.19099144]
[1693485147321,0.07182889,223.68,223.27,0.19099144]
[1693485147515,0.07182889,223.68,223.28,0.19099144]
[1693485147717,0.07182889,223.68,223.27,0.19099144]
[1693485147917,0.07182889,223.68,223.28,0.19099144]
[1693485148118,0.07182889,223.68,223.27,0.19099144]
[1693485148318,0.07182889,223.68,223.28,0.19099144]
[1693485148518,0.07182889,223.68,223.27,0.19099144]
[1693485149020,0.07182889,223.67,223.27,0.19099144]
[1693485151523,0.07182889,223.66,223.27,0.19099144]
[1693485152723,0.07182889,223.66,223.27,0.26431084]
[1693485152923,0.07182889,223.66,223.28,0.19099144]
[1693485153118,0.07182889,223.66,223.27,0.26431084]
[1693485153320,0.07182889,223.66,223.28,0.19099144]
[1693485155125,0.07182889,223.65,223.28,0.26431084]
[1693485155325,0.07182889,223.65,223.29,0.19099144]
[1693485158526,0.07182889,223.65,223.29,0.26431084]
[1693485158826,0.07182889,223.64,223.3,0.19099144]
[1693485159426,0.07182889,223.65,223.3,0.19099144]
[1693485159820,0.07182889,223.64,223.3,0.19099144]
[1693485160026,0.07182889,223.64,223.3,0.26431084]
[1693485160228,0.07182889,223.64,223.31,0.19099144]
[1693485160827,0.07182889,223.64,223.3,0.19099144]
[1693485161127,0.07182889,223.63,223.31,0.19099144]
[1693485161327,0.07182889,223.63,223.31,0.26431084]
[1693485161527,0.07182889,223.63,223.32,0.19099144]
[1693485161925,0.07182889,223.62,223.32,0.0733194]
[1693485162130,0.07182889,223.63,223.33,0.19099144]
[1693485162925,0.07182889,223.61,223.33,0.26431084]
[1693485163123,0.07182889,223.61,223.34,0.19099144]
[1693485164023,0.07182889,223.61,223.35,0.0733194]
[1693485164024,0.07182889,223.59,223.35,0.0733194]
[1693485164227,0.07182889,223.59,223.36,0.19099144]
[1693485165928,0.07182889,223.58,223.36,0.19099144]
[1693485166433,0.07182889,223.58,223.34,0.0733194]
[1693485166733,0.07182889,223.58,223.35,0.19076644]
[1693485168830,0.07182889,223.58,223.35,0.26408584]
[1693485169035,0.07182889,223.58,223.36,0.19076644]
[1693485170438,0.07182889,223.59,223.36,0.19076644]
[1693485170837,0.07182889,223.58,223.36,0.19076644]
[1693485173836,0.07182889,223.59,223.36,0.19076644]
[1693485175243,0.14391185,223.61,223.36,0.19076644]
[1693485175244,0.07182889,223.58,223.36,0.19076644]
[1693485175441,0.07182889,223.59,223.36,0.19076644]
[1693485176640,0.07182889,223.6,223.36,0.26408584]
[1693485176844,0.07182889,223.6,223.37,0.19076644]
[1693485180749,0.07182889,223.6,223.37,0.26408584]
[1693485181051,0.07182889,223.6,223.38,0.19076644]
[1693485181350,0.07182889,223.61,223.37,0.0733194]
[1693485181550,0.07182889,223.6,223.38,0.19072815]
[1693485183355,0.07182889,223.59,223.35,0.0733194]
[1693485183555,0.07182889,223.6,223.36,0.26407663]
[1693485183754,0.07182889,223.59,223.37,0.19075723]
[1693485184152,0.07182889,223.59,223.35,0.0733194]
[1693485184354,0.07182889,223.59,223.36,0.1907585]
[1693485186856,0.07182889,223.58,223.36,0.1907585]
[1693485187051,0.07182889,223.58,223.35,0.1907585]
[1693485187254,0.07182889,223.58,223.36,0.19078601]
[1693485187453,0.07182889,223.58,223.35,0.19078601]
[1693485187756,0.07182889,223.58,223.36,0.1907644]
[1693485188755,0.07182889,223.58,223.35,0.1907644]
[1693485188955,0.07182889,223.58,223.36,0.19077118]
[1693485189257,0.07182889,223.58,223.19,0.48879601]
[1693485189258,0.07182889,223.58,223.33,0.0733194]
[1693485189453,0.07182889,223.58,223.34,0.26411623]
[1693485189655,0.07182889,223.58,223.35,0.19079683]
[1693485189855,0.07182889,223.53,223.29,0.0733194]
[1693485190057,0.07182889,223.52,223.3,0.19101027]
[1693485190257,0.07182889,223.52,223.28,0.0733194]
[1693485190458,0.07182889,223.52,223.29,0.19100737]
[1693485191362,0.07182889,223.55,223.29,0.19100737]
[1693485191661,0.07182889,223.55,223.3,0.19100737]
[1693485191961,0.07182889,223.55,223.26,0.0733194]
[1693485192161,0.07182889,223.55,223.27,0.19099347]
[1693485192360,0.07182889,223.56,223.27,0.19099347]
[1693485192561,0.07182889,223.56,223.28,0.19099347]
[1693485192758,0.07182889,223.56,223.29,0.19099347]
[1693485192964,0.07182889,223.56,223.3,0.19099347]
[1693485193160,0.07182889,223.56,223.25,0.19099347]
[1693485193364,0.07182889,223.57,223.26,0.19099817]
[1693485193558,0.07182889,223.57,223.25,0.19099817]
[1693485193867,0.07182889,223.57,223.26,0.19099817]
[1693485194161,0.07182889,223.57,223.24,0.0733194]
[1693485194162,0.07182889,223.57,223.27,0.19099817]
[1693485194364,0.07182889,223.57,223.25,0.19099817]
[1693485194665,0.07182889,223.57,223.26,0.19099817]
[1693485194863,0.07182889,223.57,223.25,0.19099817]
[1693485195058,0.07182889,223.57,223.26,0.19099817]
[1693485195261,0.07182889,223.58,223.27,0.19099817]
[1693485195564,0.07182889,223.58,223.28,0.19099817]
[1693485195768,0.07182889,223.58,223.29,0.19099817]
[1693485195962,0.07182889,223.58,223.3,0.19099817]
[1693485196163,0.07182889,223.58,223.22,0.0733194]
[1693485196365,0.07182889,223.58,223.23,0.1909924]
[1693485198663,0.07182889,223.58,223.24,0.1909924]
[1693485198864,0.07182889,223.59,223.25,0.1909924]
[1693485199065,0.07182889,223.59,223.26,0.1909924]
[1693485199265,0.07182889,223.59,223.22,0.1909924]
[1693485199468,0.07182889,223.59,223.23,0.1909924]
[1693485199669,0.07182889,223.59,223.24,0.1909924]
[1693485199968,0.07182889,223.59,223.25,0.1909924]
[1693485200162,0.07182889,223.59,223.22,0.1909924]
[1693485200369,0.07182889,223.59,223.23,0.1909924]
[1693485200567,0.07182889,223.59,223.21,0.1909924]
[1693485200769,0.07182889,223.59,223.22,0.1909924]
[1693485200970,0.07182889,223.59,223.21,0.1909924]
[1693485201168,0.07182889,223.59,223.22,0.1909924]
[1693485201369,0.07182889,223.59,223.21,0.1909924]
[1693485201570,0.07182889,223.59,223.22,0.1909924]
[1693485201868,0.07182889,223.59,223.23,0.1909924]
[1693485202069,0.07182889,223.59,223.21,0.1909924]
[1693485202369,0.07182889,223.6,223.22,0.1909924]
[1693485202570,0.07182889,223.6,223.21,0.1909924]
[1693485202771,0.07182889,223.6,223.22,0.1909924]
[1693485203071,0.07182889,223.59,223.23,0.1909924]
[1693485203267,0.07182889,223.59,223.2,0.1909924]
[1693485203469,0.07182889,223.59,223.21,0.1909924]
[1693485203669,0.07182889,223.59,223.2,0.1909924]
[1693485203869,0.07182889,223.59,223.21,0.1909924]
[1693485204066,0.07182889,223.59,223.2,0.1909924]
[1693485204266,0.07182889,223.59,223.21,0.1909924]
[1693485204467,0.07182889,223.59,223.2,0.1909924]
[1693485204668,0.07182889,223.59,223.21,0.1909924]
[1693485204971,0.07182889,223.59,223.22,0.1909924]
[1693485205269,0.07182889,223.59,223.23,0.1909924]
[1693485205467,0.07182889,223.59,223.19,0.1909924]
[1693485205673,0.07182889,223.59,223.2,0.1909924]
[1693485205868,0.07182889,223.59,223.19,0.1909924]
[1693485206073,0.07182889,223.59,223.2,0.1909924]
[1693485206269,0.07182889,223.59,223.19,0.1909924]
[1693485206477,0.07182889,223.59,223.2,0.1909924]
[1693485206772,0.07182889,223.59,223.21,0.1909924]
[1693485206976,0.07182889,223.59,223.19,0.1909924]
[1693485207175,0.07182889,223.59,223.2,0.1909924]
[1693485207377,0.07182889,223.59,223.18,0.1909924]
[1693485207676,0.07182889,223.59,223.19,0.1909924]
[1693485207875,0.07182889,223.59,223.18,0.1909924]
[1693485208069,0.07182889,223.59,223.19,0.1909924]
[1693485208274,0.07182889,223.59,223.18,0.1909924]
[1693485208478,0.07182889,223.59,223.19,0.1909924]
[1693485208776,0.07182889,223.59,223.2,0.1909924]
[1693485208980,0.07182889,223.59,223.18,0.1909924]
[1693485209276,0.07182889,223.59,223.19,0.1909924]
[1693485209477,0.07182889,223.59,223.17,0.0733194]
[1693485209478,0.07182889,223.59,223.18,0.1909924]
[1693485209679,0.07182889,223.59,223.19,0.1909924]
[1693485209975,0.07182889,223.59,223.2,0.1909924]
[1693485210176,0.07182889,223.59,223.18,0.1909924]
[1693485210375,0.07182889,223.59,223.19,0.1909924]
[1693485210577,0.07182889,223.59,223.18,0.1909924]
[1693485210776,0.07182889,223.59,223.19,0.1909924]
[1693485210972,0.07182889,223.59,223.18,0.1909924]
[1693485211171,0.07182889,223.59,223.19,0.1909924]
[1693485211372,0.07182889,223.59,223.2,0.1909924]
[1693485211573,0.07182889,223.59,223.21,0.1909924]
[1693485211875,0.07182889,223.59,223.22,0.1909924]
[1693485212080,0.07182889,223.59,223.18,0.1909924]
[1693485212379,2.39853097,223.72,223.19,0.1909924]
[1693485212380,0.07182889,223.58,223.19,0.1909924]
[1693485212571,0.07182889,223.58,223.18,0.1909924]
[1693485212775,0.07182889,223.58,223.19,0.1909924]
[1693485212975,0.07182889,223.58,223.18,0.1909924]
[1693485213176,0.07182889,223.58,223.19,0.1909924]
[1693485213374,0.07182889,223.58,223.18,0.1909924]
[1693485213576,0.07182889,223.58,223.19,0.1909924]
[1693485213780,0.07182889,223.58,223.18,0.1909924]
[1693485213981,0.07182889,223.57,223.19,0.1909924]
[1693485214175,0.07182889,223.57,223.18,0.1909924]
[1693485214480,0.07182889,223.57,223.19,0.1909924]
[1693485214681,0.07182889,223.57,223.2,0.1909924]
[1693485214875,0.07182889,223.57,223.18,0.1909924]
[1693485215076,0.07182889,223.57,223.19,0.1909924]
[1693485215275,0.07182889,223.57,223.18,0.1909924]
[1693485215479,0.07182889,223.57,223.19,0.1909924]
[1693485215679,0.07182889,223.57,223.18,0.1909924]
[1693485215973,0.07182889,223.56,223.19,0.1909924]
[1693485218182,0.07182889,223.51,223.19,0.1909924]
[1693485218383,0.07182889,223.51,223.14,0.1909924]
[1693485218579,0.07182889,223.51,223.15,0.1909924]
[1693485218783,0.07182889,223.51,223.13,0.1909924]
[1693485218986,0.07182889,223.51,223.14,0.1909924]
[1693485219187,0.07182889,223.51,223.15,0.1909924]
[1693485219386,0.07182889,223.51,223.13,0.1909924]
[1693485219586,0.07182889,223.51,223.14,0.1909924]
[1693485219887,0.07182889,223.51,223.15,0.1909924]
[1693485220181,0.07182889,223.51,223.16,0.1909924]
[1693485220386,0.07182889,223.51,223.17,0.1909924]
[1693485220581,0.07182889,223.51,223.18,0.1909924]
[1693485220786,0.07182889,223.51,223.13,0.1909924]
[1693485220985,0.07182889,223.51,223.14,0.1909924]
[1693485221183,0.07182889,223.5,223.15,0.1909924]
[1693485221381,0.07182889,223.5,223.16,0.1909924]
[1693485221594,0.07182889,223.51,223.17,0.1909924]
[1693485221782,0.07182889,223.51,223.14,0.1909924]
[1693485221987,0.07182889,223.51,223.15,0.1909924]
[1693485222183,0.07182889,223.51,222.89,0.97759203]
[1693485222184,0.07182889,223.54,223.17,0.0733194]
[1693485222485,0.07182889,223.55,223.18,0.2643118]
[1693485222682,0.07182889,223.55,223.19,0.1909924]
[1693485223291,0.07182889,223.54,223.19,0.2643118]
[1693485223484,0.07182889,223.54,223.2,0.1909924]
[1693485224189,0.07182889,223.55,223.2,0.1909924]
[1693485224389,0.07182889,223.54,223.2,0.2643118]
[1693485224591,0.07182889,223.54,223.21,0.1909924]
[1693485226291,0.07182889,223.53,223.21,0.1909924]
[1693485226693,0.07182889,223.53,223.2,0.1909924]
[1693485226885,0.07182889,223.53,223.21,0.1909924]
[1693485227192,0.07182889,223.53,223.22,0.1909924]
[1693485227394,0.07182889,223.53,223.23,0.1909924]
[1693485227691,0.07182889,223.53,223.24,0.1909924]
[1693485227990,0.07182889,223.52,223.25,0.1909924]
[1693485228292,0.07182889,223.52,223.26,0.1909924]
[1693485228587,0.07182889,223.52,223.19,0.0733194]
[1693485228791,0.07182889,223.52,223.2,0.19108185]
[1693485233293,0.07182889,223.52,223.2,0.26440125]
[1693485233493,0.07182889,223.52,223.21,0.19108185]
[1693485237297,0.07182889,223.52,223.21,0.26440125]
[1693485237596,0.07182889,223.52,223.22,0.19108185]
[1693485238899,0.07182889,223.52,223.22,0.26440125]
[1693485239101,0.07182889,223.52,223.23,0.19108185]
[1693485239297,0.14391185,223.55,223.23,0.19108185]
[1693485239298,0.07182889,223.53,223.23,0.19108185]
[1693485239497,0.07182889,223.52,223.23,0.19108185]
[1693485240101,0.07182889,223.53,223.23,0.19108185]
[1693485241300,0.07182889,223.52,223.23,0.19108185]
[1693485241698,0.07182889,223.53,223.23,0.19108185]
[1693485242702,0.07182889,223.54,223.23,0.26440125]
[1693485242900,0.07182889,223.54,223.24,0.19108185]
[1693485245299,0.07182889,223.54,223.24,0.26440125]
[1693485245603,0.07182889,223.54,223.25,0.19108185]
[1693485245803,0.07182889,223.55,223.25,0.19108185]
[1693485246003,0.07182889,223.54,223.25,0.19108185]
[1693485246203,0.14391185,223.57,223.25,0.19108185]
[1693485246204,0.07182889,223.55,223.25,0.19108185]
[1693485248103,0.07182889,223.56,223.25,0.19108185]
[1693485248305,0.07182889,223.57,223.25,0.26440125]
[1693485248504,0.95941238,223.64,222.75,4.3971417]
[1693485248505,0.07182889,223.61,223.3,0.0733194]
[1693485248699,0.07182889,223.62,223.31,0.19108185]
[1693485249204,0.07182889,223.63,223.31,0.19108185]
[1693485249406,0.07182889,223.63,223.3,0.19108185]
[1693485249705,0.07182889,223.63,223.31,0.19108185]
[1693485249905,0.07182889,223.63,223.3,0.19108185]
[1693485250304,0.07182889,223.64,223.3,0.19108185]
[1693485250502,0.07182889,223.64,223.31,0.19108185]
[1693485250805,0.07182889,223.64,223.32,0.19108185]
[1693485251006,0.07182889,223.64,223.28,0.19108185]
[1693485251201,0.07182889,223.65,223.29,0.19108185]
[1693485251401,0.07182889,223.65,223.27,0.19108185]
[1693485251606,0.07182889,223.65,223.28,0.19108185]
[1693485251900,0.07182889,223.65,223.29,0.19108185]
[1693485252106,0.07182889,223.65,223.26,0.0733194]
[1693485252107,0.07182889,223.65,223.27,0.19108185]
[1693485252605,0.07182889,223.65,223.28,0.19108185]
[1693485252807,0.07182889,223.65,223.29,0.19108185]
[1693485253002,0.07182889,223.65,223.3,0.19108185]
[1693485253199,0.07182889,223.66,223.26,0.19108185]
[1693485253404,0.07182889,223.66,223.27,0.19108185]
[1693485253604,0.07182889,223.66,223.26,0.19108185]
[1693485253804,0.07182889,223.66,223.27,0.19108185]
[1693485254202,0.07182889,223.66,223.28,0.19108185]
[1693485254409,0.07182889,223.65,223.29,0.19108185]
[1693485254608,0.07182889,223.65,223.3,0.19108185]
[1693485254805,0.07182889,223.65,223.31,0.19108185]
[1693485255006,0.07182889,223.65,223.26,0.19108185]
[1693485255205,0.07182889,223.65,223.27,0.19108185]
[1693485255407,0.07182889,223.65,223.26,0.19108185]
[1693485255606,0.07182889,223.65,223.27,0.19108185]
[1693485255804,0.07182889,223.65,223.26,0.19108185]
[1693485256006,0.07182889,223.65,223.27,0.19108185]
[1693485256210,0.07182889,223.65,223.28,0.19108185]
[1693485256410,0.07182889,223.65,223.29,0.19108185]
[1693485256711,0.07182889,223.65,223.3,0.19108185]
[1693485256910,0.07182889,223.65,223.26,0.19108185]
[1693485257106,0.07182889,223.65,223.27,0.19108185]
[1693485257307,0.07182889,223.66,223.26,0.19108185]
[1693485257509,0.07182889,223.66,223.27,0.19108185]
[1693485257703,0.07182889,223.66,223.28,0.19108185]
[1693485257909,0.07182889,223.66,223.29,0.19108185]
[1693485258109,0.07182889,223.66,223.26,0.19108185]
[1693485258306,0.07182889,223.66,223.27,0.19108185]
[1693485258505,0.07182889,223.66,223.26,0.19108185]
[1693485258708,0.07182889,223.66,223.27,0.19108185]
[1693485258910,0.07182889,223.66,223.26,0.19108185]
[1693485259210,0.07182889,223.66,223.27,0.19108185]
[1693485259410,0.07182889,223.66,223.25,0.19108185]
[1693485259710,0.07182889,223.66,223.26,0.19108185]
[1693485259907,0.07182889,223.66,223.25,0.19108185]
[1693485260108,0.07182889,223.66,223.26,0.19108185]
[1693485260311,0.07182889,223.66,223.25,0.19108185]
[1693485260511,0.07182889,223.66,223.26,0.19108185]
[1693485260708,0.07182889,223.66,223.25,0.19108185]
[1693485261006,0.07182889,223.66,223.26,0.19108185]
[1693485261211,0.07182889,223.66,223.25,0.19108185]
[1693485261412,0.07182889,223.66,223.26,0.19108185]
[1693485261613,0.07182889,223.66,223.25,0.19108185]
[1693485261912,0.07182889,223.66,223.26,0.19108185]
[1693485262112,0.07182889,223.66,223.25,0.19108185]
[1693485262309,0.07182889,223.66,223.26,0.19108185]
[1693485262509,0.07182889,223.66,223.25,0.19108185]
[1693485262712,0.07182889,223.66,223.26,0.19108185]
[1693485262910,0.07182889,223.66,223.25,0.19108185]
[1693485263112,0.07182889,223.67,223.26,0.19108185]
[1693485263306,0.07182889,223.67,223.25,0.19108185]
[1693485263506,0.07182889,223.67,223.26,0.19108185]
[1693485263706,0.07182889,223.67,223.25,0.19108185]
[1693485263908,0.07182889,223.67,223.26,0.19108185]
[1693485264208,0.07182889,223.67,223.27,0.19108185]
[1693485264413,0.07182889,223.67,223.28,0.19108185]
[1693485264609,0.07182889,223.67,223.25,0.19108185]
[1693485264815,0.07182889,223.67,223.26,0.19108185]
[1693485265113,0.07182889,223.67,223.24,0.0733194]
[1693485265114,0.07182889,223.67,223.27,0.19108185]
[1693485265314,0.07182889,223.67,223.28,0.19108185]
[1693485265514,0.07182889,223.67,223.29,0.19108185]
[1693485265814,0.07182889,223.67,223.3,0.19108185]
[1693485266012,0.07182889,223.67,223.25,0.19108185]
[1693485266212,0.07182889,223.67,223.26,0.19108185]
[1693485266414,0.07182889,223.67,223.25,0.19108185]
[1693485266710,0.07182889,223.67,223.26,0.19108185]
[1693485266915,0.07182889,223.67,223.27,0.19108185]
[1693485267215,0.07182889,223.68,223.28,0.19108185]
[1693485267416,0.07182889,223.67,223.26,0.19108185]
[1693485267614,0.07182889,223.67,223.27,0.19108185]
[1693485267809,0.07182889,223.67,223.28,0.19108185]
[1693485268014,0.07182889,223.67,223.26,0.19108185]
[1693485269414,0.07182889,223.67,223.26,0.26440125]
[1693485269615,0.07182889,223.72,223.3,0.0733194]
[1693485269816,0.07182889,223.72,223.31,0.26440125]
[1693485270017,0.07182889,223.73,223.32,0.19108185]
[1693485271418,0.07182889,223.74,223.33,0.19108185]
[1693485271619,0.07182889,223.74,223.34,0.19108185]
[1693485271919,0.07182889,223.74,223.35,0.19108185]
[1693485272118,0.07182889,223.74,223.32,0.19108185]
[1693485272319,0.07182889,223.75,223.33,0.19108185]
[1693485272518,0.07182889,223.75,223.31,0.19108185]
[1693485272720,0.07182889,223.75,223.32,0.19108185]
[1693485272920,0.07182889,223.75,223.33,0.19108185]
[1693485273219,0.07182889,223.75,223.34,0.19108185]
[1693485273418,0.07182889,223.75,223.31,0.19108185]
[1693485273619,0.07182889,223.75,223.3,0.0733194]
[1693485273620,0.07182889,223.75,223.32,0.19108185]
[1693485273920,0.07182889,223.75,223.33,0.19108185]
[1693485274113,0.07182889,223.75,223.34,0.19108185]
[1693485274315,0.07182889,223.75,223.31,0.26440125]
[1693485274519,0.07182889,223.75,223.32,0.19108185]
[1693485275521,0.07182889,223.75,223.31,0.19108185]
[1693485275821,0.07182889,223.75,223.32,0.19108185]
[1693485276120,0.07182889,223.76,223.33,0.19108185]
[1693485276316,0.07182889,223.76,223.34,0.19108185]
[1693485276515,0.07182889,223.76,223.35,0.19108185]
[1693485276722,0.07182889,223.76,223.31,0.19108185]
[1693485276923,0.07182889,223.76,223.32,0.19108185]
[1693485277722,0.07182889,223.76,223.31,0.19108185]
[1693485277920,0.07182889,223.76,223.32,0.19108185]
[1693485278221,0.07182889,223.76,223.33,0.19108185]
[1693485278422,0.07182889,223.76,223.34,0.19108185]
[1693485278719,0.07182889,223.76,223.35,0.19108185]
[1693485278919,0.07182889,223.76,223.36,0.19108185]
[1693485279221,0.07182889,223.76,223.37,0.19108185]
[1693485279420,0.07182889,223.76,223.38,0.19108185]
[1693485279622,0.07182889,223.76,223.39,0.19108185]
[1693485279821,0.07182889,223.76,223.4,0.19108185]
[1693485280025,0.07182889,223.76,223.41,0.19108185]
[1693485280318,0.07182889,223.76,223.42,0.19108185]
[1693485280525,0.07182889,223.76,223.43,0.19108185]
[1693485280725,0.07182889,223.76,223.32,0.19108185]
[1693485280925,0.07182889,223.76,223.33,0.19049589]
[1693485281125,0.07182889,223.76,223.32,0.19049589]
[1693485281325,0.07182889,223.75,223.33,0.19049589]
[1693485281525,0.07182889,223.75,223.32,0.19049589]
[1693485281726,0.07182889,223.75,223.33,0.19049589]
[1693485281927,0.07182889,223.75,223.32,0.19049589]
[1693485282130,0.07182889,223.76,223.33,0.19049589]
[1693485282427,0.07182889,223.76,223.34,0.19049589]
[1693485282628,0.07182889,223.76,223.35,0.19049589]
[1693485282825,0.07182889,223.76,223.36,0.19049589]
[1693485283026,0.07182889,223.76,223.37,0.19049589]
[1693485283226,0.07182889,223.75,223.38,0.19049589]
[1693485283426,0.07182889,223.75,223.39,0.19049589]
[1693485283627,0.07182889,223.75,223.4,0.19049589]
[1693485283923,0.07182889,223.75,223.41,0.19049589]
[1693485284124,0.07182889,223.75,223.33,0.19049589]
[1693485284327,0.07182889,223.75,223.34,0.19049589]
[1693485284528,0.07182889,223.75,223.32,0.19049589]
[1693485284828,0.07182889,223.75,223.33,0.19049589]
[1693485285028,0.07182889,223.75,223.32,0.19049589]
[1693485285222,0.07182889,223.75,223.33,0.19049589]
[1693485285423,0.07182889,223.75,223.32,0.19049589]
[1693485285624,0.07182889,223.75,223.33,0.19049589]
[1693485285928,0.07182889,223.75,223.34,0.19049589]
[1693485286125,0.07182889,223.75,223.32,0.19049589]
[1693485286330,0.07182889,223.75,223.33,0.19049589]
[1693485286526,0.07182889,223.75,223.32,0.19049589]
[1693485286725,0.07182889,223.75,223.33,0.19049589]
[1693485286927,0.07182889,223.75,223.32,0.19049589]
[1693485287132,0.07182889,223.75,223.33,0.19049589]
[1693485287333,0.07182889,223.75,223.32,0.19049589]
[1693485287525,0.07182889,223.75,223.33,0.19049589]
[1693485287730,0.07182889,223.75,223.32,0.19049589]
[1693485287930,0.07182889,223.75,223.33,0.19049589]
[1693485288131,0.07182889,223.75,223.32,0.19049589]
[1693485288332,0.07182889,223.75,223.33,0.19049589]
[1693485288527,0.07182889,223.75,223.34,0.19049589]
[1693485288732,0.07182889,223.75,223.35,0.19049589]
[1693485288925,0.07182889,223.75,223.36,0.19049589]
[1693485289130,0.07182889,223.76,223.37,0.19049589]
[1693485289330,0.07182889,223.76,223.38,0.19049589]
[1693485289531,0.07182889,223.76,223.39,0.19049589]
[1693485289731,0.07182889,223.76,223.32,0.0733194]
[1693485289732,0.07182889,223.76,223.33,0.19049589]
[1693485289932,0.07182889,223.76,223.34,0.19049589]
[1693485290128,0.07182889,223.76,223.33,0.19049589]
[1693485290334,0.07182889,223.76,223.34,0.19049589]
[1693485290534,0.07182889,223.76,223.33,0.19049589]
[1693485290834,0.07182889,223.76,223.34,0.19049589]
[1693485291036,0.07182889,223.76,223.33,0.19049589]
[1693485291229,0.07182889,223.76,223.34,0.19049589]
[1693485291535,0.07182889,223.76,223.35,0.19049589]
[1693485291735,0.07182889,223.76,223.36,0.19049589]
[1693485291937,0.07182889,223.75,223.37,0.19049589]
[1693485292137,0.07182889,223.75,223.33,0.19049589]